bitfinex/quotes_SOLUSD_20240825
["timestamp","ask_amount","ask_price","bid_price","bid_amount"]
[1724618009732,6.5041,159.13,159.0,16.1057]
[1724618009954,6.5041,159.13,159.04,9.72068701]
[1724618010853,6.5041,159.13,159.06,9.72068701]
[1724618028384,45.0,159.12,159.05,9.72068701]
[1724618036275,45.0,159.12,159.05,11.29388986]
[1724618036456,45.0,159.12,159.05,9.72068701]
[1724618037060,45.0,159.12,159.05,11.29388986]
[1724618037272,45.0,159.12,159.05,9.72068701]
[1724618039482,6.5041,159.13,159.07,9.72068701]
[1724618041783,6.5041,159.13,159.01,52.39208289]
[1724618041784,6.5041,159.13,159.09,9.72068701]
[1724618044896,15.997,159.14,159.09,9.72068701]
[1724618046775,6.4676,159.17,159.11,9.72068701]
[1724618053780,6.4676,159.17,159.11,13.65665692]
[1724618054089,6.4676,159.17,159.11,9.72068701]
[1724618055203,6.4676,159.17,159.11,13.65663781]
[1724618055377,6.4676,159.17,159.11,9.72068701]
[1724618060597,6.4676,159.17,159.13,9.72068701]
[1724618067981,6.5175,159.21,159.15,9.72068701]
[1724618068186,51.5175,159.21,159.15,9.72068701]
[1724618069784,6.5175,159.21,159.15,9.72068701]
[1724618070610,6.5175,159.21,159.17,9.72068701]
[1724618072406,16.1431,159.22,159.17,9.72068701]
[1724618074718,6.5175,159.25,159.21,9.72068701]
[1724618078917,16.7097355,159.26,159.21,9.72068701]
[1724618079420,16.7097355,159.26,159.16,16.151]
[1724618079421,0.5666355,159.26,159.23,9.72068701]
[1724618085526,0.5666355,159.26,159.25,9.72068701]
[1724618095123,0.5666355,159.26,159.16,15.8971]
[1724618095320,0.5666355,159.26,159.24,9.72068701]
[1724618096647,0.5666355,159.26,159.22,9.72068701]
[1724618096830,0.5666355,159.26,159.2,9.72068701]
[1724618096831,7.0973355,159.26,159.2,9.72068701]
[1724618097136,7.0973355,159.26,159.18,9.72068701]
[1724618097430,45.0,159.25,159.18,9.72068701]
[1724618101210,7.0973355,159.26,159.18,9.72068701]
[1724618101409,7.0973355,159.26,159.2,9.72068701]
[1724618101712,7.0973355,159.26,159.15,1.57182593]
[1724618101911,7.0973355,159.26,159.18,9.72068701]
[1724618102344,16.81802251,159.26,159.16,9.72068701]
[1724618102828,45.0,159.25,159.16,9.72068701]
[1724618106538,7.0973355,159.26,159.18,9.72068701]
[1724618106743,7.0973355,159.26,159.13,15.8971]
[1724618106744,7.0973355,159.26,159.2,9.72068701]
[1724618113125,7.0973355,159.26,159.18,9.72068701]
[1724618113851,45.0,159.25,159.16,9.72068701]
[1724618115549,16.1094,159.24,159.14,9.72068701]
[1724618115750,16.1094,159.24,159.15,20.0]
[1724618118431,6.5064,159.22,159.14,9.72068701]
[1724618118745,6.5064,159.22,159.11,7.41374956]
[1724618118746,70.83008701,159.21,159.13,3.93438551]
[1724618119055,70.83008701,159.21,159.12,3.93438551]
[1724618119234,70.83008701,159.21,159.11,9.72068701]
[1724618119426,70.83008701,159.21,159.11,13.65507252]
[1724618119627,70.83008701,159.21,159.12,3.93438551]
[1724618119935,70.83008701,159.21,159.11,3.93438551]
[1724618120350,70.83008701,159.21,159.1,9.72068701]
[1724618120655,20.0,159.2,159.1,9.72068701]
[1724618120832,45.0,159.19,159.1,9.72068701]
[1724618121044,25.83008701,159.17,159.07,3.93438551]
[1724618121357,6.5064,159.14,159.06,3.93438551]
[1724618121533,6.5064,159.14,159.05,3.93438551]
[1724618121955,6.5064,159.14,159.06,9.72068701]
[1724618122132,6.5064,159.14,159.06,13.65507252]
[1724618122333,6.5064,159.14,159.06,9.72068701]
[1724618123046,6.5064,159.14,159.03,3.93650429]
[1724618123047,6.5064,159.14,159.08,9.72068701]
[1724618126045,6.5064,159.14,159.06,9.72068701]
[1724618126962,45.0,159.13,159.04,9.72068701]
[1724618127169,15.5329,159.12,159.05,20.0]
[1724618128063,15.5329,159.12,159.01,15.9029]
[1724618128064,15.5329,159.12,159.02,9.72068701]
[1724618128241,45.0,159.11,159.02,9.72068701]
[1724618128445,45.0,159.11,158.99,3.93694503]
[1724618128644,45.0,159.11,159.0,9.72068701]
[1724618129770,6.2209,159.09,159.01,20.0]
[1724618130070,45.0,159.08,159.01,20.0]
[1724618130567,15.5329,159.07,158.98,7.41374956]
[1724618130778,54.72068701,159.06,158.93,24.06174956]
[1724618130955,9.72068701,159.04,158.95,9.72068701]
[1724618131273,45.0,159.03,158.95,9.72068701]
[1724618131767,45.0,159.03,158.9,6.54671194]
[1724618131960,45.0,159.03,158.93,9.72068701]
[1724618132871,54.72068701,159.04,158.93,9.72068701]
[1724618133572,9.72068701,158.98,158.88,6.54203326]
[1724618133879,45.0,158.97,158.87,9.72068701]
[1724618134165,15.5329,158.96,158.87,9.72068701]
[1724618134868,6.2209,159.02,158.87,9.72068701]
[1724618134869,15.5329,159.03,158.95,9.72068701]
[1724618135273,15.5329,159.03,158.88,47.33540061]
[1724618135274,15.5329,159.03,158.94,9.72068701]
[1724618135973,15.5329,159.03,158.88,8.45265257]
[1724618136171,15.5329,159.03,158.93,9.72068701]
[1724618136345,15.5329,159.03,158.95,9.72068701]
[1724618136553,6.2209,159.05,158.99,9.72068701]
[1724618136951,16.1135,159.07,159.03,9.72068701]
[1724618138083,16.1135,159.07,159.02,24.30475499]
[1724618138547,6.013,159.09,159.02,24.30475499]
[1724618139065,6.013,159.09,159.03,20.0]
[1724618143193,6.013,159.09,159.02,24.30475499]
[1724618143491,6.013,159.09,159.0,24.30475499]
[1724618144772,6.013,159.09,159.01,20.0]
[1724618154094,6.013,159.09,159.0,24.30475499]
[1724618154291,6.013,159.09,159.01,20.0]
[1724618155702,6.013,159.09,159.0,24.30475499]
[1724618157395,45.0,159.08,159.0,24.30475499]
[1724618158099,45.0,159.08,159.01,9.72516346]
[1724618160817,6.013,159.09,159.01,9.72516346]
[1724618161323,6.013,159.09,159.03,9.72516346]
[1724618161524,6.013,159.09,159.05,9.72516346]
[1724618161732,6.013,159.09,159.07,9.72516346]
[1724618162020,16.1135,159.11,159.07,9.72516346]
[1724618162226,15.263,159.18,159.07,9.72516346]
[1724618163597,20.0,159.17,159.07,9.72516346]
[1724618164324,45.0,159.16,159.07,9.72516346]
[1724618165099,6.389,159.15,159.07,9.72516346]
[1724618165310,45.0,159.14,159.07,9.72516346]
[1724618171832,45.0,159.14,159.05,9.72516346]
[1724618172038,45.0,159.14,159.06,20.0]
[1724618172813,15.0299,159.13,159.06,20.0]
[1724618173013,45.0,159.12,159.06,20.0]
[1724618173426,45.0,159.12,159.03,9.72516346]
[1724618174832,45.0,159.12,159.04,20.0]
[1724618175842,45.0,159.12,159.05,9.72516346]
[1724618176733,45.0,159.12,159.04,20.0]
[1724618176734,15.0299,159.13,159.07,9.72516346]
[1724618184333,15.0299,159.13,159.04,20.0]
[1724618184334,15.0299,159.13,159.04,29.72516346]
[1724618184556,45.0,159.12,159.04,29.72516346]
[1724618185219,15.0299,159.13,159.06,9.72516346]
[1724618186617,6.389,159.15,159.08,9.72516346]
[1724618188229,15.5364,159.17,159.08,9.72516346]
[1724618188432,45.0,159.16,159.08,9.72516346]
[1724618189037,45.0,159.16,159.08,11.09823694]
[1724618190926,22.06716346,159.19,159.12,9.72516346]
[1724618190927,6.0602,159.19,159.12,9.72516346]
[1724618192825,6.0602,159.19,159.1,9.72516346]
[1724618193046,6.0602,159.19,159.11,20.0]
[1724618193446,45.0,159.18,159.11,20.0]
[1724618198960,45.0,159.18,159.09,9.72516346]
[1724618199143,45.0,159.18,159.1,20.0]
[1724618200663,6.0602,159.19,159.11,9.72516346]
[1724618202439,15.5364,159.21,159.11,9.72516346]
[1724618202756,65.0,159.2,159.11,9.72516346]
[1724618209072,65.0,159.2,159.11,25.98096346]
[1724618209246,65.0,159.2,159.13,9.72516346]
[1724618209443,276.22691395,159.25,159.17,9.72516346]
[1724618209649,0.5666355,159.26,159.17,9.72516346]
[1724618210567,6.8457355,159.26,159.17,9.72516346]
[1724618210945,45.0,159.25,159.17,9.72516346]
[1724618211252,20.0,159.24,159.17,9.72516346]
[1724618211448,45.0,159.23,159.17,9.72516346]
[1724618212349,51.2802,159.23,159.13,15.66458613]
[1724618212562,54.72516346,159.23,159.14,20.0]
[1724618212765,45.0,159.23,159.14,20.0]
[1724618213069,45.0,159.23,159.15,9.72516346]
[1724618214281,45.0,159.23,159.17,9.72516346]
[1724618215573,0.5666355,159.26,159.19,9.72516346]
[1724618216951,45.5666355,159.26,159.19,9.72516346]
[1724618218969,45.5666355,159.26,159.21,9.72516346]
[1724618220443,9.72516346,159.22,159.14,9.55678613]
[1724618220657,9.72516346,159.22,159.11,25.98096346]
[1724618220658,65.0,159.21,159.11,25.98096346]
[1724618222058,9.72516346,159.2,159.11,25.98096346]
[1724618222263,9.72516346,159.18,159.07,16.2558]
[1724618222467,9.72516346,159.16,159.07,16.2558]
[1724618222846,9.72516346,159.14,159.07,16.2558]
[1724618223075,9.72516346,159.14,159.05,6.1078]
[1724618223252,45.0,159.13,159.05,6.1078]
[1724618223983,45.0,159.14,159.05,6.1078]
[1724618229870,75.50882887,159.14,159.03,16.2558]
[1724618230183,26.2842,159.13,159.03,16.2558]
[1724618230382,45.0,159.12,159.03,16.2558]
[1724618235290,45.0,159.12,159.04,44.30572887]
[1724618235493,20.0,159.13,159.04,44.30572887]
[1724618235792,20.0,159.14,159.04,44.30572887]
[1724618235992,45.0,159.13,159.04,44.30572887]
[1724618236580,20.0,159.14,159.04,44.30572887]
[1724618237989,45.0,159.13,159.04,20.0]
[1724618238289,50.59022887,159.12,159.03,16.2558]
[1724618238495,50.59022887,159.12,158.99,15.2159]
[1724618238496,30.59102887,159.1,158.99,15.2159]
[1724618238671,45.0,159.09,158.99,15.2159]
[1724618239700,45.0,159.09,159.0,20.0]
[1724618239912,24.30572887,159.06,158.94,15.2159]
[1724618240076,24.30572887,159.06,158.95,1.57399262]
[1724618240276,65.0,159.05,158.95,1.57399262]
[1724618241072,65.0,159.05,158.94,39.52162887]
[1724618241275,65.0,159.05,158.95,20.0]
[1724618241878,65.0,159.05,158.94,15.2159]
[1724618243200,71.2031,159.05,158.95,20.0]
[1724618243897,71.2031,159.05,158.94,15.2159]
[1724618243898,24.30572887,159.04,158.94,15.2159]
[1724618244116,65.0,159.03,158.94,15.2159]
[1724618244802,65.0,159.03,158.9,39.52162887]
[1724618246903,45.0,159.01,158.91,20.0]
[1724618248314,45.0,159.02,158.91,20.0]
[1724618248893,69.30572887,159.02,158.91,20.0]
[1724618249793,6.2031,159.05,158.92,24.30572887]
[1724618249992,20.0,159.04,158.93,20.0]
[1724618250204,20.0,159.04,158.91,20.0]
[1724618250787,20.0,159.04,158.92,24.30572887]
[1724618251016,20.0,159.04,158.94,24.30572887]
[1724618251324,6.2031,159.05,158.95,20.0]
[1724618251491,6.1399,159.09,158.96,24.30572887]
[1724618251694,6.1399,159.09,159.0,24.30572887]
[1724618251695,21.90614492,159.08,159.0,24.30572887]
[1724618251899,6.1399,159.09,159.01,20.0]
[1724618252198,16.1033,159.12,159.02,24.30572887]
[1724618253487,65.0,159.11,159.02,24.30572887]
[1724618258728,65.0,159.11,159.01,20.0]
[1724618259020,65.0,159.11,159.01,24.30572887]
[1724618259236,65.0,159.11,159.02,20.0]
[1724618262607,65.0,159.11,158.98,15.4242]
[1724618262608,65.0,159.11,159.0,24.30572887]
[1724618262812,24.30572887,159.08,158.93,21.80439782]
[1724618263120,24.30572887,159.08,158.94,29.81860479]
[1724618263317,45.0,159.07,158.95,1.57391904]
[1724618264131,45.0,159.07,158.95,21.57391904]
[1724618264373,45.0,159.07,158.96,1.57391904]
[1724618264510,45.0,159.07,158.96,1.57392308]
[1724618264839,45.0,159.07,158.94,44.30572887]
[1724618264840,45.0,159.07,158.95,3.14823364]
[1724618265004,51.2869,159.07,158.95,3.14823364]
[1724618265329,36.6576,159.06,158.95,1.57411682]
[1724618265721,45.0,159.05,158.95,1.57411682]
[1724618266434,45.0,159.05,158.95,21.57411682]
[1724618269936,45.0,159.05,158.95,1.57411682]
[1724618274828,45.0,159.05,158.94,20.0]
[1724618279450,6.0541,159.04,158.94,20.0]
[1724618279645,45.0,159.03,158.94,20.0]
[1724618282058,45.0,159.03,158.95,9.73253697]
[1724618282258,45.0,159.03,158.96,20.0]
[1724618282431,25.78113697,159.02,158.89,21.87158001]
[1724618282632,45.78113697,159.02,158.91,9.73253697]
[1724618282857,45.78113697,159.02,158.91,11.09838442]
[1724618282858,45.0,159.01,158.91,11.09838442]
[1724618283660,9.73253697,158.98,158.9,3.94040238]
[1724618283865,9.73253697,158.98,158.88,5.30658018]
[1724618284157,45.0,158.97,158.88,1.3661778]
[1724618284361,45.0,158.97,158.87,9.73253697]
[1724618285140,45.0,158.97,158.87,11.09871477]
[1724618285339,45.0,158.97,158.87,9.73253697]
[1724618285757,45.0,158.97,158.88,20.0]
[1724618285984,45.0,158.97,158.89,5.30658018]
[1724618286158,45.0,158.97,158.89,5.30723292]
[1724618286661,45.0,158.97,158.89,3.94105512]
[1724618287161,45.0,158.97,158.88,20.0]
[1724618287366,45.0,158.97,158.87,26.61884292]
[1724618287664,45.0,158.97,158.88,5.30733525]
[1724618287848,45.0,158.97,158.89,20.0]
[1724618288531,45.0,158.97,158.88,20.0]
[1724618289548,45.0,158.97,158.87,26.61871261]
[1724618289760,45.0,158.97,158.88,3.9409762]
[1724618291458,42.5135,159.0,158.88,28.29665558]
[1724618291666,45.0,158.99,158.89,20.0]
[1724618296751,45.0,158.99,158.9,24.35567938]
[1724618297051,45.0,158.99,158.91,20.0]
[1724618299747,22.5135,159.0,158.91,20.0]
[1724618303551,22.5135,159.0,158.92,3.94030482]
[1724618303870,22.5135,159.0,158.92,3.94028097]
[1724618304549,22.5135,159.0,158.92,3.94037241]
[1724618304750,22.5135,159.0,158.91,20.0]
[1724618305149,22.5135,159.0,158.92,3.94034563]
[1724618305354,283.13850022,159.04,158.92,28.29602501]
[1724618305556,20.0,159.03,158.94,24.35567938]
[1724618306760,45.0,159.02,158.94,24.35567938]
[1724618307088,45.0,159.02,158.95,23.9398536]
[1724618307381,45.0,159.03,158.95,20.0]
[1724618308069,45.0,159.03,158.96,9.73202819]
[1724618308274,45.0,159.03,158.96,13.67185678]
[1724618309461,45.0,159.03,158.96,9.73202819]
[1724618309974,45.0,159.03,158.96,13.67185678]
[1724618317205,22.015,159.08,158.98,9.73202819]
[1724618317393,45.0,159.07,158.98,9.73202819]
[1724618317707,20.0,159.06,158.98,9.73202819]
[1724618317888,45.0,159.05,158.98,13.67185678]
[1724618318197,45.0,159.05,158.98,9.73202819]
[1724618318606,45.0,159.05,158.98,13.6713584]
[1724618318910,45.0,159.05,158.98,9.73202819]
[1724618322282,45.0,159.05,158.98,13.67139548]
[1724618322481,45.0,159.05,158.98,9.73202819]
[1724618325585,45.0,159.05,158.99,1.57403569]
[1724618325916,45.0,159.05,159.0,1.57403569]
[1724618326082,45.0,159.05,158.98,9.73202819]
[1724618326282,45.0,159.05,158.99,1.5740555]
[1724618326487,45.0,159.05,158.96,6.61607654]
[1724618326693,45.0,159.05,158.97,21.57407115]
[1724618326909,45.0,159.05,158.97,20.0]
[1724618327399,45.0,159.05,158.96,20.0]
[1724618327709,45.0,159.05,158.97,3.93953363]
[1724618327905,45.0,159.05,158.96,20.0]
[1724618332396,45.0,159.05,158.97,3.93959839]
[1724618332693,45.0,159.05,158.97,13.67162658]
[1724618333814,45.0,159.05,158.99,9.73202819]
[1724618341298,45.0,159.05,158.98,3.93942044]
[1724618341499,45.0,159.05,158.99,3.93942044]
[1724618341798,45.0,159.05,158.98,3.93942044]
[1724618342008,45.0,159.05,158.99,3.93942044]
[1724618342200,45.0,159.05,158.98,3.93942044]
[1724618342523,45.0,159.05,158.99,3.93942044]
[1724618342723,45.0,159.05,158.97,16.34819184]
[1724618345332,45.0,159.05,158.98,6.61616365]
[1724618346124,45.0,159.05,158.99,9.73202819]
[1724618346319,22.015,159.08,158.99,9.73202819]
[1724618346524,65.0,159.07,158.99,9.73202819]
[1724618348204,65.0,159.07,158.98,6.61616365]
[1724618348205,74.73202819,159.07,158.98,6.61616365]
[1724618348407,74.73202819,159.07,158.97,6.61648688]
[1724618348600,74.73202819,159.07,158.98,26.61648688]
[1724618348803,74.73202819,159.07,158.96,29.73202819]
[1724618349001,74.73202819,159.07,158.97,6.61633742]
[1724618349215,74.73202819,159.07,158.96,29.73202819]
[1724618349216,74.73202819,159.07,158.98,26.61633742]
[1724618349429,74.73202819,159.07,158.96,29.73202819]
[1724618349634,74.73202819,159.07,158.97,6.61636926]
[1724618349960,74.73202819,159.07,158.98,1.36501884]
[1724618350112,74.73202819,159.07,158.98,6.61637011]
[1724618350308,74.73202819,159.07,158.96,29.73202819]
[1724618350534,74.73202819,159.07,158.99,1.36501775]
[1724618351129,74.73202819,159.07,158.96,29.73202819]
[1724618351444,74.73202819,159.07,158.97,1.36501876]
[1724618351615,74.73202819,159.07,158.98,1.36501876]
[1724618351814,74.73202819,159.07,158.99,1.36501876]
[1724618352035,74.73202819,159.07,158.96,29.73202819]
[1724618352232,74.73202819,159.07,158.97,1.36501515]
[1724618352438,74.73202819,159.07,158.98,1.36501515]
[1724618352640,74.73202819,159.07,158.99,1.36501515]
[1724618352933,81.01852819,159.07,158.96,29.73202819]
[1724618353239,81.01852819,159.07,158.97,1.36512249]
[1724618353741,81.01852819,159.07,158.98,1.36512249]
[1724618353935,81.01852819,159.07,158.96,29.73202819]
[1724618355132,65.0,159.07,158.98,9.73202819]
[1724618359715,81.01882819,159.07,158.96,29.73202819]
[1724618362849,15.9598,159.04,158.96,20.0]
[1724618363022,15.9598,159.04,158.94,9.73202819]
[1724618363023,45.0,159.03,158.94,9.73202819]
[1724618363222,45.0,159.03,158.95,20.0]
[1724618363719,54.73202819,159.03,158.92,17.94548099]
[1724618364131,61.02012819,159.03,158.92,8.2134528]
[1724618364353,61.02012819,159.03,158.92,9.73202819]
[1724618365163,61.02012819,159.03,158.93,20.0]
[1724618366361,54.73202819,159.03,158.93,20.0]
[1724618366560,20.0,159.02,158.92,9.73202819]
[1724618366750,45.0,159.01,158.93,20.0]
[1724618367262,45.0,159.01,158.92,9.73202819]
[1724618367466,45.0,159.01,158.93,20.0]
[1724618368638,45.0,159.01,158.94,9.73202819]
[1724618378068,20.0,159.02,158.94,9.73202819]
[1724618378376,22.5382,159.04,158.96,9.73202819]
[1724618384660,22.5382,159.04,158.98,9.73202819]
[1724618385977,16.01822819,159.08,158.98,9.73202819]
[1724618385978,22.8843,159.08,158.98,9.73202819]
[1724618386146,45.0,159.07,159.0,9.73202819]
[1724618386964,45.0,159.07,159.01,1.57393167]
[1724618387163,45.0,159.07,159.02,1.57393167]
[1724618387364,45.0,159.07,159.0,9.73202819]
[1724618387566,45.0,159.07,159.01,1.57392952]
[1724618387777,45.0,159.07,159.02,1.57392952]
[1724618388086,45.0,159.07,159.03,1.5737593]
[1724618388292,45.0,159.07,159.0,9.73202819]
[1724618388463,45.0,159.07,159.01,1.5737929]
[1724618388663,45.0,159.07,159.0,9.73202819]
[1724618388664,45.0,159.07,159.02,1.5737929]
[1724618388980,45.0,159.07,159.03,1.5737929]
[1724618389174,45.0,159.07,159.0,9.73202819]
[1724618389383,45.0,159.07,159.01,1.57375973]
[1724618389770,45.0,159.07,159.0,9.73202819]
[1724618390067,45.0,159.07,159.02,1.57375941]
[1724618390392,45.0,159.07,159.0,9.73202819]
[1724618399572,45.0,159.07,158.99,20.0]
[1724618399775,45.0,159.07,158.99,9.73202819]
[1724618403199,45.0,159.07,158.99,13.67075053]
[1724618403376,45.0,159.07,158.99,9.73202819]
[1724618406107,45.0,159.07,159.01,9.73202819]
[1724618406310,22.8843,159.08,159.01,9.73202819]
[1724618406311,6.1164,159.13,159.05,9.73202819]
[1724618406608,6.1164,159.13,159.07,9.73202819]
[1724618407812,45.0,159.12,159.07,9.73202819]
[1724618409286,45.0,159.12,159.03,3.9368899]
[1724618409488,45.0,159.12,159.04,9.73202819]
[1724618409714,45.0,159.12,159.05,20.0]
[1724618410385,45.0,159.12,159.01,15.2462]
[1724618410584,45.0,159.12,159.02,29.73202819]
[1724618411308,9.73202819,159.09,158.98,8.89552378]
[1724618411519,9.73202819,159.07,158.98,18.62755197]
[1724618412022,45.0,159.06,158.98,18.62755197]
[1724618412717,45.0,159.06,158.99,20.0]
[1724618415910,45.0,159.07,158.99,20.0]
[1724618423405,45.0,159.07,159.0,1.364176]
[1724618424729,45.0,159.07,159.0,1.36429425]
[1724618425110,16.1912,159.12,159.01,11.09632244]
[1724618425433,16.1912,159.12,159.03,9.73202819]
[1724618425610,16.1912,159.12,159.03,11.09632244]
[1724618425807,16.1912,159.12,159.03,9.73202819]
[1724618426008,16.1912,159.12,159.04,1.36429425]
[1724618426421,16.1912,159.12,159.03,26.34482819]
[1724618426624,16.1912,159.12,159.04,1.36429425]
[1724618426824,16.1912,159.12,159.03,26.34482819]
[1724618427016,16.1912,159.12,159.04,1.36318118]
[1724618427334,45.0,159.11,159.04,1.36318118]
[1724618427532,45.0,159.11,159.04,7.97593264]
[1724618427832,45.0,159.11,159.05,9.73202819]
[1724618428022,45.0,159.11,159.05,11.09520937]
[1724618428221,15.3099,159.16,159.07,9.73202819]
[1724618428431,45.0,159.15,159.07,9.73202819]
[1724618429304,21.8728774,159.16,159.07,9.73202819]
[1724618429635,15.3099,159.16,159.07,9.73202819]
[1724618430824,45.0,159.15,159.07,9.73202819]
[1724618435020,15.3099,159.2,159.11,9.73202819]
[1724618435219,20.0,159.19,159.11,9.73202819]
[1724618435818,6.56622431,159.2,159.13,9.73202819]
[1724618436018,15.3099,159.24,159.15,9.73202819]
[1724618436641,15.3099,159.24,159.16,1.25639898]
[1724618437220,6.2642,159.25,159.16,16.6128]
[1724618437439,6.2642,159.25,159.17,10.9883806]
[1724618437610,6.2642,159.25,159.17,9.73202819]
[1724618438548,0.5666355,159.26,159.17,10.98835344]
[1724618438735,65.5666355,159.26,159.17,9.73202819]
[1724618439249,20.5666355,159.26,159.17,9.73202819]
[1724618440738,45.0,159.25,159.17,9.73202819]
[1724618441444,54.73202819,159.25,159.16,16.6128]
[1724618444625,45.0,159.25,159.16,16.6128]
[1724618452337,9.73202819,159.24,159.16,16.6128]
[1724618452554,45.0,159.23,159.16,16.6128]
[1724618456160,45.0,159.23,159.16,26.34482819]
[1724618456451,12.84404703,159.25,159.16,26.34482819]
[1724618457762,45.0,159.24,159.16,26.34482819]
[1724618468062,45.0,159.24,159.17,1.25632874]
[1724618468273,45.0,159.23,159.17,1.25632874]
[1724618468773,45.0,159.25,159.17,1.25632874]
[1724618470852,45.0,159.25,159.16,26.34482819]
[1724618472741,45.0,159.25,159.18,9.73202819]
[1724618473949,45.0,159.25,159.17,6.4118]
[1724618477978,45.0,159.25,159.18,1.57233609]
[1724618478149,45.0,159.25,159.17,6.4118]
[1724618478355,45.0,159.25,159.18,1.57233609]
[1724618478555,45.0,159.25,159.17,6.4118]
[1724618478872,45.0,159.25,159.18,1.57233609]
[1724618479080,45.0,159.25,159.17,6.4118]
[1724618479285,45.0,159.25,159.18,1.57233588]
[1724618479475,45.0,159.25,159.19,1.57233588]
[1724618479662,45.0,159.25,159.17,6.4118]
[1724618479863,45.0,159.25,159.18,1.57234458]
[1724618480081,45.0,159.25,159.17,6.4118]
[1724618480082,45.0,159.25,159.19,1.57234458]
[1724618480271,51.2794,159.25,159.17,6.4118]
[1724618480588,51.2794,159.25,159.18,1.57234458]
[1724618480788,51.2794,159.25,159.19,1.57234437]
[1724618480960,51.2794,159.25,159.17,6.4118]
[1724618481163,51.2794,159.25,159.18,1.57234458]
[1724618481350,51.2794,159.25,159.19,1.57234458]
[1724618481550,51.2794,159.25,159.2,1.57234458]
[1724618481782,51.2794,159.25,159.17,6.4118]
[1724618481970,51.2794,159.25,159.18,5.50707387]
[1724618482168,51.2794,159.25,159.19,1.57233609]
[1724618482468,51.2794,159.25,159.2,1.57233609]
[1724618482656,51.2794,159.25,159.17,6.4118]
[1724618482982,51.2794,159.25,159.18,5.50710492]
[1724618483176,51.2794,159.25,159.19,1.57234394]
[1724618483483,51.2794,159.25,159.2,1.57234394]
[1724618483684,6.2798,159.24,159.17,6.4118]
[1724618483883,54.73202819,159.23,159.18,5.50715049]
[1724618484106,6.2811,159.21,159.16,16.6128]
[1724618484297,45.0,159.2,159.16,16.6128]
[1724618484481,45.0,159.2,159.17,1.57259883]
[1724618484675,45.0,159.2,159.16,16.6128]
[1724618484986,45.0,159.2,159.17,1.57257692]
[1724618485193,45.0,159.2,159.16,16.6128]
[1724618485376,45.0,159.21,159.17,1.57259947]
[1724618485567,45.0,159.22,159.18,5.5073093]
[1724618485767,45.0,159.22,159.19,1.57259947]
[1724618485996,45.0,159.22,159.2,1.57259947]
[1724618486196,45.0,159.22,159.16,16.6128]
[1724618486367,45.0,159.22,159.17,5.50683662]
[1724618486574,45.0,159.22,159.18,5.50683662]
[1724618486783,45.0,159.22,159.19,1.57227254]
[1724618486990,45.0,159.22,159.2,1.57227254]
[1724618487190,45.0,159.22,159.21,1.57227254]
[1724618487401,45.0,159.22,159.16,16.6128]
[1724618487594,6.56757722,159.25,159.21,1.57225426]
[1724618487805,65.0,159.24,159.18,3.9345141]
[1724618487972,65.0,159.24,159.19,5.50674789]
[1724618488173,65.0,159.24,159.17,9.73202819]
[1724618488508,65.0,159.24,159.18,3.93446108]
[1724618488797,45.0,159.24,159.19,3.93446108]
[1724618489108,45.0,159.24,159.17,9.73202819]
[1724618490177,45.0,159.24,159.19,5.29491793]
[1724618490500,45.0,159.24,159.17,9.73202819]
[1724618490707,45.0,159.24,159.18,5.29492013]
[1724618490893,45.0,159.24,159.17,9.73202819]
[1724618490894,45.0,159.24,159.19,5.29492013]
[1724618491098,45.0,159.24,159.17,9.73202819]
[1724618491300,45.0,159.24,159.18,5.29492013]
[1724618491479,45.0,159.24,159.19,5.29492013]
[1724618491680,45.0,159.24,159.17,9.73202819]
[1724618491890,45.0,159.24,159.18,5.29487657]
[1724618492217,45.0,159.24,159.19,3.93438781]
[1724618492511,45.0,159.24,159.17,9.73202819]
[1724618492814,45.0,159.24,159.18,5.29487555]